bitfinex/quotes_ETHUSD_20240924
["timestamp","ask_amount","ask_price","bid_price","bid_amount"]
[1727198648736,3.78833,2639.7,2639.1,4.625856]
[1727198648925,3.78833,2639.7,2639.1,8.414936]
[1727198649126,3.78821,2639.8,2639.2,0.9204636]
[1727198649424,3.78809,2639.9,2639.4,0.7897]
[1727198649630,3.78818,2639.8,2639.4,0.7897]
[1727198650126,3.78846,2639.6,2639.2,0.7897]
[1727198650675,3.78888,2639.3,2638.9,0.7897]
[1727198650972,3.78886,2639.4,2638.9,0.7897]
[1727198650973,3.78905,2639.2,2638.9,0.7897]
[1727198651361,3.78883,2639.4,2638.9,0.7897]
[1727198651666,3.78883,2639.4,2638.9,5.416044]
[1727198651879,3.78883,2639.4,2638.9,4.57915]
[1727198652338,3.78861,2639.5,2639.0,3.78925]
[1727198652545,3.7885,2639.6,2639.1,3.78914]
[1727198652546,7.57705,2639.6,2639.1,3.78914]
[1727198652943,3.7886,2639.5,2638.9,4.57904]
[1727198653135,3.7886,2639.5,2639.0,0.457904]
[1727198653573,3.78897,2639.3,2638.9,0.7897]
[1727198653931,0.7748,2639.2,2638.7,3.78973]
[1727198654237,3.78899,2639.3,2638.8,4.57928]
[1727198654441,3.78903,2639.2,2638.8,0.7897]
[1727198655845,3.78912,2639.2,2638.8,0.7897]
[1727198656033,3.78889,2639.3,2638.8,0.7897]
[1727198656230,3.78918,2639.1,2638.5,0.7897]
[1727198656435,3.78954,2638.9,2638.5,0.7897]
[1727198657533,3.78969,2638.8,2638.5,0.7897]
[1727198657734,0.7748,2639.1,2638.2,7.959771]
[1727198657735,0.7748,2639.1,2638.2,1.168751]
[1727198657976,3.78968,2638.8,2638.2,0.7897]
[1727198658335,3.79,2638.6,2638.2,0.7897]
[1727198658651,7.57998,2638.6,2638.2,0.7897]
[1727198658850,3.78998,2638.6,2638.2,0.7897]
[1727198659756,3.7897,2638.8,2638.2,4.58012]
[1727198659757,3.78974,2638.7,2638.2,4.58012]
[1727198659966,3.78974,2638.7,2638.3,0.458012]
[1727198660492,3.78989,2638.6,2638.3,0.458012]
[1727198660663,3.78988,2638.6,2638.3,0.458012]
[1727198660987,3.7897,2638.8,2638.3,4.248302]
[1727198661196,3.7897,2638.8,2638.4,0.5038002]
[1727198661958,3.78991,2638.6,2638.4,0.5038002]
[1727198662152,3.7897,2638.8,2638.3,0.458012]
[1727198662389,7.57938,2638.8,2638.3,4.248272]
[1727198662782,3.7899,2638.6,2638.3,0.458012]
[1727198663412,3.78968,2638.8,2638.3,4.248322]
[1727198663575,7.57941,2638.8,2638.3,3.79031]
[1727198664307,0.7748,2639.1,2638.4,3.79017]
[1727198664607,3.78924,2639.1,2638.6,3.78979]
[1727198664810,3.78939,2639.0,2638.6,1.15215183]
[1727198664980,3.78949,2638.9,2638.5,0.7897]
[1727198666528,3.78923,2639.1,2638.5,0.7897]
[1727198666529,3.78931,2639.1,2638.6,3.78988]
[1727198666814,3.78912,2639.2,2638.8,0.7897]
[1727198666984,3.78912,2639.2,2638.9,0.457935]
[1727198667190,3.78912,2639.2,2638.8,0.7897]
[1727198667379,4.56365,2639.4,2638.9,3.78943]
[1727198667380,3.78884,2639.4,2638.9,3.78943]
[1727198667576,0.7748,2639.9,2639.2,0.7897]
[1727198667785,3.78839,2639.7,2639.2,4.0174289]
[1727198668090,3.78811,2639.9,2639.2,4.0174289]
[1727198668091,3.78823,2639.8,2639.3,4.56940689]
[1727198668289,3.78836,2639.7,2639.3,0.78065689]
[1727198668588,3.78846,2639.6,2639.3,0.78065689]
[1727198669204,3.78823,2639.8,2639.3,0.78065689]
[1727198669205,3.78823,2639.8,2639.4,0.53593569]
[1727198669499,3.78823,2639.8,2639.3,0.78065689]
[1727198669500,3.78847,2639.6,2639.3,0.78065689]
[1727198670323,3.78823,2639.8,2639.3,0.78065689]
[1727198670522,7.57651,2639.8,2639.3,0.78065689]
[1727198671013,3.78823,2639.8,2639.3,0.78065689]
[1727198671225,3.78846,2639.6,2639.4,0.53592969]
[1727198671533,3.78859,2639.5,2639.4,0.53592969]
[1727198671706,3.78846,2639.6,2639.2,0.7897]
[1727198671907,7.57702,2639.6,2639.2,0.7897]
[1727198672817,7.57702,2639.6,2639.2,0.785502]
[1727198673219,3.78861,2639.5,2638.8,11.19948]
[1727198673425,3.78885,2639.4,2638.9,3.78945]
[1727198673848,3.78861,2639.5,2638.8,12.63462383]
[1727198673849,3.78888,2639.3,2638.8,12.63462383]
[1727198674144,3.78888,2639.3,2638.8,5.22462383]
[1727198674345,3.78905,2639.2,2638.8,3.78948]
[1727198674554,3.78919,2639.1,2638.6,3.78978]
[1727198674751,3.78888,2639.3,2638.7,4.168578]
[1727198675049,3.78906,2639.2,2638.7,4.168578]
[1727198675643,0.788,2639.6,2638.7,0.378978]
[1727198675845,3.78933,2639.0,2638.5,3.78996]
[1727198676146,3.78933,2639.0,2638.6,0.777]
[1727198676346,3.78917,2639.1,2638.6,4.56686]
[1727198676551,3.78917,2639.1,2638.6,5.023546]
[1727198677051,3.78932,2639.0,2638.6,5.023546]
[1727198677532,3.78932,2639.0,2638.6,0.777]
[1727198677923,3.78967,2638.8,2638.6,0.777]
[1727198678861,3.78945,2638.9,2638.6,0.777]
[1727198679367,3.78945,2638.9,2638.6,0.763445]
[1727198679761,3.7896,2638.8,2638.6,0.763445]
[1727198681604,3.78946,2638.9,2638.6,0.763445]
[1727198682405,3.78935,2639.0,2638.6,1.2187915]
[1727198682570,3.78922,2639.1,2638.6,1.2187915]
[1727198682571,3.78922,2639.1,2638.6,5.0086615]
[1727198683082,3.78924,2639.1,2638.6,5.0086615]
[1727198683279,7.57853,2639.1,2638.6,5.0086615]
[1727198683596,3.7894,2639.0,2638.6,0.763445]
[1727198684067,3.7897,2638.8,2638.4,0.777]
[1727198684401,0.84693112,2639.0,2638.1,0.777]
[1727198684402,3.7901,2638.5,2638.1,0.777]
[1727198684559,7.58021,2638.5,2638.1,0.777]
[1727198684759,3.78955,2638.9,2638.2,3.79035]
[1727198684959,3.78967,2638.8,2638.3,4.5673]
[1727198685826,3.78967,2638.8,2638.4,3.79015]
[1727198686505,3.78967,2638.8,2638.3,4.56725]
[1727198686704,3.78967,2638.8,2638.3,5.4486868]
[1727198691062,3.78967,2638.8,2638.4,3.79013]
[1727198691417,3.78942,2639.0,2638.6,0.7747]
[1727198691418,3.78938,2639.0,2638.6,0.7747]
[1727198692561,0.788,2639.3,2638.4,1.18133193]
[1727198692905,3.78966,2638.8,2638.4,0.7747]
[1727198693071,7.57934,2638.8,2638.4,0.7747]
[1727198693368,3.78966,2638.8,2638.4,0.7747]
[1727198693734,3.78975,2638.7,2638.4,0.7747]
[1727198694039,3.78966,2638.8,2638.4,4.56485]
[1727198694363,3.78966,2638.8,2638.5,0.835515]
[1727198694664,3.78966,2638.8,2638.4,4.56485]
[1727198695865,3.78912,2639.2,2638.7,3.78966]
[1727198696038,3.78911,2639.2,2638.4,0.7747]
[1727198696239,3.78939,2639.0,2638.5,3.79002]
[1727198697009,3.78939,2639.0,2638.5,3.78994]
[1727198698686,3.78926,2639.1,2638.6,3.78986]
[1727198698883,3.78934,2639.0,2638.4,8.35491]
[1727198699087,3.78934,2639.0,2638.5,0.835491]
[1727198699257,3.78934,2639.0,2638.5,4.625481]
[1727198699990,3.78941,2639.0,2638.5,0.835491]
[1727198700154,7.5791,2638.9,2638.4,4.56476]
[1727198700357,2.38184885,2639.3,2638.4,4.56476]
[1727198700358,3.78981,2638.7,2638.4,0.7747]
[1727198700563,3.78981,2638.7,2638.2,4.44071135]
[1727198700564,3.78981,2638.7,2638.2,3.79036]
[1727198700867,3.79016,2638.5,2638.1,0.7747]
[1727198701069,3.78971,2638.8,2638.4,3.79016]
[1727198701282,3.78919,2639.1,2638.6,0.7747]
[1727198701460,1.59384885,2639.4,2638.9,0.7747]
[1727198701792,5.77565174,2639.5,2639.0,4.245638]
[1727198701793,3.7887,2639.5,2639.0,4.245638]
[1727198701950,3.7884,2639.7,2639.2,3.78902]
[1727198702152,2.38674885,2639.8,2639.3,3.78886]
[1727198702494,4.24436,2639.9,2639.5,3.78859]
[1727198702679,3.78789,2640.0,2639.5,3.78845]
[1727198702979,3.78789,2640.0,2639.3,8.38698014]
[1727198702980,3.78829,2639.8,2639.3,5.23502183]
[1727198703697,2.42224885,2640.1,2639.5,3.78856]
[1727198703874,0.0381069,2640.2,2639.9,6.93985831]
[1727198704087,0.0381069,2640.2,2640.1,7.69178831]
[1727198704302,0.0381069,2640.2,2640.1,4.53983]
[1727198705109,0.0381069,2640.2,2640.1,0.7521]
[1727198705677,0.0381069,2640.2,2640.1,3.90405831]
[1727198705876,0.0381069,2640.2,2640.1,1.14250583]
[1727198707077,0.0381069,2640.2,2639.7,6.7883]
[1727198707273,0.0381069,2640.2,2639.8,0.7521]
[1727198707815,3.8257269,2640.2,2639.8,0.7521]
[1727198708064,0.0381069,2640.2,2639.5,0.7521]
[1727198708217,0.0381069,2640.2,2639.5,7.69264831]
[1727198708419,0.0381069,2640.2,2639.6,0.82161505]
[1727198708727,0.0381069,2640.2,2639.6,4.61004505]
[1727198709118,3.8257169,2640.2,2639.6,0.82161505]
[1727198709317,3.78788,2640.0,2639.5,0.7521]
[1727198710025,3.8257869,2640.2,2639.5,7.69254831]
[1727198710248,3.8257869,2640.2,2639.7,3.15195831]
[1727198710249,0.0381069,2640.2,2639.7,3.15195831]
[1727198710420,0.0381069,2640.2,2639.7,7.69224831]
[1727198710627,0.0381069,2640.2,2639.7,4.54029]
[1727198710821,0.0381069,2640.2,2639.7,0.7521]
[1727198711023,3.8256969,2640.2,2639.7,0.7521]
[1727198711226,0.8284,2640.1,2639.7,0.7521]
[1727198711730,3.78826,2639.8,2639.3,0.7521]
[1727198712574,3.78847,2639.6,2639.3,0.7521]
[1727198713554,3.78826,2639.8,2639.3,0.7521]
[1727198713721,4.61617,2640.1,2639.3,0.7521]
[1727198713923,3.78856,2639.6,2639.3,0.7521]
[1727198714227,7.5771,2639.6,2639.3,0.7521]
[1727198714426,3.78854,2639.6,2639.3,0.7521]
[1727198715451,3.78854,2639.6,2638.9,3.15195831]
[1727198715452,3.78931,2639.0,2638.9,0.7521]
[1727198715649,3.78811,2639.9,2638.5,0.7521]
[1727198715650,3.78965,2638.8,2638.5,0.7521]
[1727198717454,3.78988,2638.6,2638.1,0.7907]
[1727198717653,7.57988,2638.6,2638.1,0.7907]
[1727198717887,3.78988,2638.6,2638.2,0.458142]
[1727198720195,3.78868,2639.5,2638.6,0.7907]
[1727198720396,3.78868,2639.5,2638.7,3.78963]
[1727198720602,3.78888,2639.3,2638.7,3.78963]
[1727198721155,3.78888,2639.3,2638.7,3.78973]
[1727198721800,3.78868,2639.5,2638.7,3.78962]
[1727198721956,3.78881,2639.4,2638.7,3.78962]
[1727198722355,3.78881,2639.4,2638.7,7.57928]
[1727198722556,3.78868,2639.5,2638.8,3.78952]
[1727198723363,3.78876,2639.4,2638.8,3.78952]
[1727198723516,0.8221,2639.8,2639.1,3.78907]
[1727198723517,3.78841,2639.7,2639.1,3.78907]
[1727198724425,0.8221,2639.8,2639.1,3.78907]
[1727198724621,7.57672,2639.7,2639.1,3.78907]
[1727198724980,3.78831,2639.7,2639.1,3.78907]
[1727198725833,3.78846,2639.6,2639.1,3.78907]
[1727198726036,3.78831,2639.7,2639.1,3.78907]
[1727198726244,7.57671,2639.7,2639.1,3.78907]
[1727198726787,1.63195575,2640.2,2639.5,3.15195831]
[1727198726931,0.0381069,2640.2,2640.1,4.57843]
[1727198727131,0.0381069,2640.2,2640.1,6.28025483]
[1727198727368,0.005,2640.4,2640.3,7.33744]
[1727198727677,0.005,2640.4,2640.3,11.28009831]
[1727198727986,0.005,2640.4,2640.3,36.12364231]
[1727198728142,0.005,2640.9,2640.8,4.57743]
[1727198728330,0.005,2640.9,2640.8,8.963859]
[1727198729266,0.005,2640.9,2640.8,59.463859]
[1727198729968,0.005,2640.9,2640.8,44.338841]
[1727198730943,0.005,2640.9,2640.8,14.244336]
[1727198731175,0.005,2640.9,2640.8,8.963859]
[1727198731473,0.005,2640.9,2640.8,11.901396]
[1727198732053,0.005,2640.9,2640.8,11.660068]
[1727198732241,0.005,2640.9,2640.8,8.963859]
[1727198733142,0.005,2640.9,2640.8,19.632566]
[1727198733777,0.005,2640.9,2640.8,8.963859]
[1727198733978,0.005,2640.9,2640.8,23.190266]
[1727198734141,0.005,2640.9,2640.8,19.632466]
[1727198734546,0.005,2641.6,2641.5,3.78572]
[1727198734846,0.0381069,2641.8,2641.7,8.11104]
[1727198735166,0.0381069,2641.8,2641.7,3.78544]
[1727198735356,0.0381069,2641.8,2641.4,3.7756]
[1727198735357,0.0381069,2641.8,2641.4,0.7756]
[1727198735553,0.0381069,2641.8,2641.7,3.78544]
[1727198735759,0.0381069,2641.8,2641.7,0.757089]
[1727198735963,4.5438,2642.3,2641.4,0.7756]
[1727198735964,3.78497,2642.1,2641.5,3.78572]
[1727198736253,3.78514,2642.0,2641.4,4.56139]
[1727198736485,3.78514,2642.0,2640.8,4.623079]
[1727198736486,0.378514,2642.0,2641.1,0.7756]
[1727198736645,0.7592,2642.3,2641.1,0.7756]
[1727198736646,3.78538,2641.8,2641.1,0.7756]
[1727198736846,7.57079,2641.8,2641.1,0.7756]
[1727198737186,3.78558,2641.6,2641.1,0.7756]
[1727198737880,0.7592,2641.7,2641.1,4.56178]
[1727198738106,0.7592,2641.7,2641.2,0.834812]
[1727198738310,3.78595,2641.4,2640.8,4.623029]
[1727198740315,7.57191,2641.4,2640.8,4.623029]
[1727198740498,3.78595,2641.4,2640.8,4.623029]
[1727198740687,3.78595,2641.4,2640.9,0.4623029]
[1727198741525,7.57193,2641.4,2640.9,0.4623029]
[1727198741838,3.78595,2641.4,2640.9,0.4623029]
[1727198742167,3.78578,2641.5,2640.9,0.4623029]
[1727198742412,3.78587,2641.4,2640.9,0.4623029]
[1727198742587,7.57184,2641.4,2640.9,0.4623029]
[1727198742769,3.78587,2641.4,2640.9,0.4623029]
[1727198743287,3.78563,2641.6,2640.9,0.4623029]
[1727198743488,3.7852,2641.9,2641.1,3.78625]
[1727198743693,3.78532,2641.8,2641.2,3.86176663]
[1727198744303,3.78532,2641.8,2641.1,4.56185]
[1727198744304,3.78516,2641.9,2641.3,3.78597]
[1727198744487,4.54425,2642.0,2641.5,3.78572]
[1727198744692,3.78497,2642.1,2641.6,0.07570661]
[1727198745020,0.7592,2642.3,2641.8,3.78521]
[1727198745189,0.0381069,2642.5,2641.4,1.154197]
[1727198745392,3.78529,2641.8,2641.1,3.7756]
[1727198745663,4.54455,2641.8,2641.1,0.7756]
[1727198745806,0.0381069,2642.5,2641.3,3.78592]
[1727198745807,3.78509,2642.0,2641.3,3.78592]
[1727198746449,3.78519,2641.9,2641.2,3.78612]
[1727198746744,3.78545,2641.7,2641.3,0.456172]
[1727198747045,3.78591,2641.4,2641.0,0.42489029]
[1727198747248,3.78591,2641.4,2640.8,4.56228]
[1727198747462,0.8294,2642.2,2641.2,3.78611]
[1727198747750,0.8294,2642.2,2641.4,3.78582]
[1727198747906,4.61422,2642.2,2641.4,3.78582]
[1727198748110,4.61422,2642.2,2641.5,0.461172]
[1727198748111,0.8294,2642.2,2641.5,0.461172]
[1727198748345,3.7845,2642.4,2641.8,3.78528]
[1727198749017,0.0381069,2642.5,2642.0,3.785]
[1727198751315,0.0381069,2642.5,2642.0,7.56976]
[1727198751509,0.0381069,2642.5,2642.0,3.78486]
[1727198752012,0.0381069,2642.5,2642.1,0.461076]
[1727198752253,3.8224269,2642.5,2642.1,0.461076]
[1727198752620,0.0381069,2642.5,2642.4,3.78443]
[1727198752853,0.0381069,2642.5,2642.4,7.61033]
[1727198753039,0.0381069,2642.5,2642.4,8.16033]
[1727198753265,0.8294,2643.8,2642.4,8.16033]
[1727198753266,0.8294,2643.8,2643.2,4.60919]
[1727198753450,0.8294,2643.8,2643.2,5.15919]
[1727198753636,0.0008,2644.0,2643.2,5.15919]
[1727198754161,0.8294,2643.5,2642.7,6.78393]
[1727198754466,0.8294,2643.5,2642.8,3.14266795]
[1727198754670,4.6117,2643.9,2643.2,3.78329]
[1727198754834,4.6117,2643.9,2643.2,4.60919]
[1727198755232,0.8294,2643.9,2643.2,4.60919]
[1727198755433,3.78302,2644.0,2643.2,8.15919]
[1727198755676,0.0008,2644.0,2643.2,8.15919]
[1727198756147,0.0008,2644.0,2643.2,7.60919]
[1727198756355,3.78299,2644.0,2643.2,7.60919]
[1727198756563,0.0008,2644.0,2643.2,7.60919]
[1727198757258,3.78302,2644.0,2643.2,7.60919]
[1727198757771,3.78251,2643.8,2643.0,3.0]
[1727198757933,3.78251,2643.8,2643.1,0.82237968]
[1727198758136,0.8294,2643.4,2642.7,3.78393]
[1727198758331,3.8213169,2643.3,2642.7,3.78389]
[1727198758569,3.8213169,2643.3,2642.6,0.8259]
[1727198758743,7.6045769,2643.3,2642.7,0.461012]
[1727198758944,3.78394,2642.8,2642.3,7.41]
[1727198759177,0.8294,2642.7,2642.3,7.41]
[1727198759484,4.61344,2642.7,2642.1,7.56957]
[1727198759689,0.8294,2642.7,2642.1,3.78478]
[1727198759833,4.61341,2642.7,2641.9,0.8259]
[1727198760038,4.61341,2642.7,2642.1,3.78486]
[1727198760236,3.78423,2642.6,2642.0,4.60847]
[1727198760435,4.61341,2642.7,2642.0,4.60847]
[1727198760705,3.78448,2642.4,2642.0,0.82359]
[1727198761310,3.78448,2642.4,2641.8,11.1952]
[1727198761311,3.78466,2642.3,2641.8,11.1952]
[1727198761513,3.78466,2642.3,2641.6,4.6114]
[1727198761514,3.78489,2642.1,2641.6,0.8259]
[1727198761718,3.78489,2642.1,2641.3,7.41]
[1727198761719,3.78489,2642.1,2641.5,3.78558]
[1727198761869,7.56939,2642.3,2641.7,3.78536]
[1727198762069,3.78467,2642.3,2641.7,3.78536]
[1727198762271,3.78488,2642.1,2641.6,0.378558]
[1727198762469,0.8294,2642.3,2641.3,12.02182]
[1727198762723,3.78518,2641.9,2641.3,7.41]
[1727198763013,4.61402,2642.3,2641.5,3.78564]
[1727198763180,4.61402,2642.3,2641.3,7.41]
[1727198763181,3.78426,2642.6,2642.0,3.78498]
[1727198763502,3.78426,2642.6,2641.6,0.8259]
[1727198763503,3.78453,2642.4,2641.7,3.78539]
[1727198763712,3.78423,2642.6,2641.9,3.78505]
[1727198764020,0.8294,2642.7,2642.2,3.78472]
[1727198764183,0.7902,2643.0,2642.3,3.07567848]
[1727198764407,0.7902,2643.0,2642.6,3.78414]
[1727198764607,0.0381069,2643.3,2643.0,3.78357]
[1727198764795,3.78357,2643.0,2642.5,0.8273]
[1727198764995,4.57377,2643.0,2642.4,7.95893785]
[1727198765205,4.57377,2643.0,2642.3,3.0]
[1727198765206,3.78374,2642.9,2642.3,3.0]
[1727198765404,3.78374,2642.9,2642.2,4.61194]
[1727198765604,3.78386,2642.8,2642.2,4.61194]
[1727198765805,3.78386,2642.8,2642.2,5.373134]
[1727198766063,3.78415,2642.6,2642.2,0.761194]
[1727198766339,3.78438,2642.5,2642.0,3.78488]
[1727198766541,3.78415,2642.6,2642.0,3.78488]
[1727198767034,4.57464,2642.4,2641.8,3.7852]
[1727198768322,3.78423,2642.6,2641.9,3.78511]
[1727198768525,3.78403,2642.7,2642.2,3.78467]
[1727198768997,0.7902,2642.8,2642.2,0.8273]
[1727198769203,8.3575,2643.0,2642.3,7.56897]
[1727198769451,4.5738,2643.0,2642.4,4.69960279]
[1727198769598,4.5738,2643.0,2642.4,0.839627]
[1727198769798,3.78393,2642.8,2642.2,3.0]
[1727198769995,3.78444,2642.4,2641.7,6.78535]
[1727198770244,0.7902,2642.2,2641.7,3.78533]
[1727198770446,0.7902,2642.2,2641.8,3.78528]
[1727198770614,4.57494,2642.2,2641.8,0.839791]
[1727198770937,0.7902,2642.2,2641.8,4.625001]
[1727198771496,0.7902,2642.2,2641.4,3.0]
[1727198771748,4.575,2642.2,2641.6,6.78549]
[1727198772044,8.35981,2642.2,2641.6,6.78549]
[1727198772397,3.78491,2642.1,2641.6,6.78549]
[1727198772738,3.78504,2642.0,2641.5,3.78563]
[1727198772936,3.78504,2642.0,2641.5,4.246923]
[1727198773336,4.575,2642.2,2641.7,3.78534]
[1727198773516,3.78491,2642.1,2641.6,3.78548]
[1727198773851,3.78503,2642.0,2641.6,0.8032543]
[1727198774055,3.78517,2641.9,2641.6,0.8032543]
[1727198774555,3.7853,2641.8,2641.5,0.461293]
[1727198774852,3.78515,2641.9,2641.5,0.461293]
[1727198775361,0.7902,2641.7,2641.3,3.0]
[1727198775577,0.7902,2642.4,2642.1,3.78481]
[1727198775716,0.7902,2642.7,2642.2,0.378481]
[1727198775914,4.5738,2643.0,2642.3,0.8273]
[1727198776154,3.78382,2642.9,2642.3,3.7845]
[1727198776454,3.78381,2642.9,2642.1,3.78477]
[1727198776657,3.78411,2642.7,2642.0,3.8273]
[1727198776822,3.78429,2642.5,2642.0,3.8273]
[1727198777220,3.78429,2642.5,2642.0,7.61222]
[1727198778116,3.78429,2642.5,2642.0,7.56984]
[1727198778317,3.78429,2642.5,2642.0,3.78492]
[1727198778615,0.7902,2643.0,2642.2,0.8273]
[1727198778831,0.7902,2643.0,2642.6,3.78407]
[1727198779262,0.7902,2643.0,2642.2,0.8273]
[1727198779479,3.78394,2642.8,2642.3,3.78449]
[1727198780173,3.78394,2642.8,2642.1,3.78476]
[1727198780174,4.619713,2642.8,2642.1,3.78476]
[1727198780496,0.7902,2642.4,2641.9,0.8273]
[1727198780646,0.7902,2642.4,2642.0,3.78499]
[1727198780842,0.7902,2642.4,2641.9,4.61241]
[1727198780843,4.57466,2642.4,2641.9,4.61241]
[1727198781544,4.57466,2642.4,2641.9,3.78511]
[1727198781746,0.7902,2642.4,2641.8,3.0]
[1727198782058,0.7902,2642.4,2641.8,7.546531]
[1727198782059,3.78465,2642.3,2641.8,7.546531]
[1727198782585,0.7902,2642.4,2641.9,3.78502]
[1727198783288,0.7902,2642.4,2642.0,3.78493]
[1727198783471,4.57468,2642.4,2641.9,3.78502]
[1727198783780,0.7902,2642.4,2642.0,3.78493]
[1727198783985,4.57468,2642.4,2641.9,4.9181831]
[1727198784187,4.57464,2642.4,2641.9,4.9181831]
[1727198784547,4.57464,2642.4,2641.6,0.8273]
[1727198784548,1.18667027,2643.1,2642.3,3.78453]
[1727198784747,1.63195575,2643.3,2643.1,3.78335]
[1727198784748,0.0381069,2643.3,2643.1,3.78335]
[1727198784952,0.0381069,2643.3,2643.2,4.161625]
[1727198785309,0.0381069,2643.3,2643.2,5.48973061]
[1727198785788,0.0381069,2643.3,2643.2,4.161625]
[1727198786304,2.76619693,2644.8,2644.6,3.78129]
[1727198786463,0.0381069,2644.9,2644.1,0.8273]
[1727198786648,0.0381069,2644.9,2644.8,3.781]
[1727198787087,0.0381069,2644.9,2644.6,3.78114]
[1727198787385,0.0381069,2644.9,2644.4,3.78147]
[1727198787588,0.0381069,2644.9,2644.5,3.78139]
[1727198788086,0.0381069,2644.9,2644.3,3.7816]
[1727198789277,0.0381069,2644.9,2644.4,3.78151]
[1727198789884,0.0381069,2644.9,2644.4,1.306311]
[1727198790194,0.0381069,2644.9,2644.6,3.78117]
[1727198790344,0.0381069,2644.9,2644.8,3.781]
[1727198791701,0.0381069,2644.9,2644.7,3.78114]
[1727198792393,0.0381069,2644.9,2644.5,3.78136]
[1727198792394,0.0381069,2644.9,2644.6,3.78128]
[1727198792597,0.0381069,2644.9,2644.6,3.0]
[1727198793258,0.0381069,2644.9,2644.7,3.78106]
[1727198793971,0.0381069,2644.9,2644.1,0.8273]
[1727198793972,0.0381069,2644.9,2644.4,3.0]
[1727198794496,0.41999959,2644.9,2644.4,3.0]
[1727198794697,3.8189669,2644.9,2644.3,6.78171]
[1727198794910,0.0381069,2644.9,2644.8,3.781]
[1727198795063,0.0381069,2644.9,2644.7,3.78112]
[1727198795405,0.0381069,2644.9,2644.6,3.78115]
[1727198795561,0.0381069,2644.9,2644.6,4.159265]
[1727198796495,0.0381069,2644.9,2644.6,7.940455]
[1727198797009,0.0381069,2644.9,2644.8,3.781]
[1727198797165,0.0381069,2644.9,2644.6,4.159265]
[1727198797361,0.0381069,2644.9,2644.7,3.78107]
[1727198797563,3.78125,2644.7,2644.1,3.78192]
[1727198797866,3.7811,2644.8,2643.6,3.78269]
[1727198798092,0.0381069,2644.9,2644.4,3.7815]
[1727198798324,0.0381069,2644.9,2644.2,4.54006]
[1727198798613,0.0381069,2644.9,2644.2,4.994056]
[1727198798785,3.78101,2644.8,2644.3,3.0]
[1727198799113,3.8189669,2644.9,2644.4,3.78155]
[1727198799582,0.0381069,2644.9,2644.4,3.78155]
[1727198799904,3.8190069,2644.9,2644.4,3.78155]
[1727198800091,3.78101,2644.8,2644.3,3.0]
[1727198800497,0.0381069,2644.9,2644.3,3.0]
[1727198800896,7.56218,2644.8,2644.3,3.0]
[1727198801101,3.78109,2644.8,2644.3,3.0]
[1727198801296,7.56222,2644.8,2644.3,6.78164]
[1727198801608,3.78109,2644.8,2644.3,6.78164]
[1727198801914,3.78109,2644.8,2644.3,7.838001]
[1727198802077,0.0381069,2644.9,2644.3,4.056361]
[1727198802414,0.0381069,2644.9,2644.6,3.78118]
[1727198802616,0.0381069,2644.9,2644.7,3.0]
[1727198802912,0.0381069,2644.9,2644.8,3.781]
[1727198803078,0.0381069,2644.9,2644.8,6.781]
[1727198803273,0.0381069,2644.9,2644.8,7.913043]
[1727198803577,0.0381069,2644.9,2644.8,32.92148655]
[1727198803894,0.0381069,2645.7,2645.6,4.53816]
[1727198804070,0.0381069,2645.7,2645.6,7.53816]
[1727198804273,0.0381069,2645.7,2645.6,33.51422436]
[1727198804518,0.11740264,2646.9,2645.6,33.51422436]
[1727198804519,0.11740264,2646.9,2646.5,0.7583]
[1727198804728,0.11740264,2646.9,2646.6,3.77834]
[1727198804729,0.11963154,2646.9,2646.6,3.77834]
[1727198804875,0.15849994,2646.9,2646.5,3.0]
[1727198805081,0.96659994,2646.9,2646.1,3.7583]
[1727198805310,0.15849994,2646.9,2646.1,8.06637966]
[1727198805476,0.15849994,2646.9,2646.1,4.28734966]
[1727198805679,0.15849994,2646.9,2646.6,3.77832]
[1727198806307,0.15849994,2646.9,2646.7,3.77827]
[1727198806524,0.15849994,2646.9,2646.6,3.77832]
[1727198806677,0.15849994,2646.9,2646.5,3.0]
[1727198807186,0.15849994,2646.9,2646.3,6.77884]
[1727198807187,4.74472994,2646.9,2646.3,6.77884]
[1727198807385,0.96659994,2646.9,2646.3,6.77884]
[1727198807787,0.96659994,2646.9,2646.3,4.18451597]
[1727198807988,0.96659994,2646.9,2646.4,3.77859]
[1727198808517,0.15849994,2646.9,2646.7,3.8033]
[1727198808680,0.15849994,2646.9,2646.8,6.77814]
[1727198809117,0.15849994,2646.9,2646.7,0.8033]
[1727198809118,1.00593896,2647.3,2646.7,3.8033]
[1727198809278,1.00593896,2647.3,2647.2,7.58087]
[1727198809681,1.00459149,2647.3,2647.2,17.34325755]
[1727198809999,0.0388684,2647.4,2647.3,8.13073]
[1727198810303,0.0388684,2647.4,2647.3,14.457076]
[1727198810513,0.0388684,2647.4,2647.3,10.208858]
[1727198810684,0.0388684,2647.4,2647.3,10.68980422]
[1727198810890,0.0388684,2647.4,2647.3,3.0]
[1727198811117,0.0388684,2647.4,2646.9,3.7779]
[1727198811300,0.0388684,2647.4,2646.9,3.77796]
[1727198811486,0.0388684,2647.4,2646.7,3.77828]
[1727198811487,3.77753,2647.3,2646.7,3.77828]
[1727198811689,0.0388684,2647.4,2646.5,3.7785]
[1727198811925,3.77752,2647.3,2646.6,3.77838]
[1727198812126,3.77752,2647.3,2646.6,4.156218]
[1727198812426,3.77769,2647.2,2646.6,4.156218]
[1727198812625,3.77781,2647.1,2646.6,0.377838]
[1727198812919,4.60267,2647.0,2646.2,3.77894]
[1727198813081,4.60267,2647.0,2646.0,0.8033]
[1727198813082,3.77821,2646.8,2646.0,4.58248]
[1727198813278,3.77821,2646.8,2646.1,3.77905]
[1727198813489,4.60271,2647.0,2646.0,0.8033]